fUST/lending_fUST_20241112
["ID","MTS","AMOUNT","RATE_DAILY","PERIOD"]
[342051283,1731395443148,-500.0,0.00021917,2]
[342051284,1731395443158,-19034.84,0.00021917,2]
[342051285,1731395443167,-500.0,0.00021917,2]
[342051286,1731395443178,-151.0,0.00021917,2]
[342051287,1731395443187,-151.0,0.00021917,2]
[342051288,1731395443197,-151.638034,0.00021917,2]
[342051289,1731395443206,-1831.69,0.00021917,2]
[342051290,1731395443215,-500.0,0.00021917,2]
[342051291,1731395443224,-500.0,0.00021917,2]
[342051292,1731395443235,-500.0,0.00021917,2]
[342051293,1731395443244,-500.0,0.00021917,2]
[342051294,1731395443254,-564.26,0.00021917,2]
[342051295,1731395443263,-500.0,0.00021917,2]
[342051296,1731395443272,-1321.42,0.00021917,2]
[342051297,1731395443282,-500.0,0.00021917,2]
[342051298,1731395443291,-500.0,0.00021917,2]
[342051299,1731395443301,-500.0,0.00021917,2]
[342051300,1731395443310,-500.0,0.00021917,2]
[342051301,1731395443319,-500.0,0.00021917,2]
[342051302,1731395443328,-500.0,0.00021917,2]
[342051303,1731395443337,-500.0,0.00021917,2]
[342051304,1731395443346,-500.0,0.00021917,2]
[342051305,1731395443355,-500.0,0.00021917,2]
[342051306,1731395443364,-516.24,0.00021917,2]
[342051307,1731395443373,-500.0,0.00021917,2]
[342051308,1731395443382,-500.0,0.00021917,2]
[342051309,1731395443391,-1588.61,0.00021917,2]
[342051310,1731395443400,-500.0,0.00021917,2]
[342051311,1731395443409,-511.35399698,0.00021917,2]
[342051312,1731395443417,-151.0,0.00021917,2]
[342051313,1731395443429,-151.0,0.00021917,2]
[342051314,1731395443438,-151.0,0.00021917,2]
[342051315,1731395443447,-500.0,0.00021917,2]
[342051316,1731395443457,-151.0,0.00021917,2]
[342051317,1731395443468,-500.0,0.00021917,2]
[342051318,1731395443477,-524.53918844,0.00021917,2]
[342051319,1731395443486,-217.532567,0.00021917,2]
[342051320,1731395443496,-151.0,0.00021917,2]
[342051321,1731395443505,-151.0,0.00021917,2]
[342051322,1731395443515,-151.0,0.00021917,2]
[342051323,1731395443523,-151.0,0.00021917,2]
[342051324,1731395443532,-151.0,0.00021917,2]
[342051325,1731395443543,-151.0,0.00021917,2]
[342051326,1731395443553,-151.0,0.00021917,2]
[342051327,1731395443563,-500.0,0.00021917,2]
[342051328,1731395443573,-500.0,0.00021917,2]
[342051329,1731395443582,-6707.74,0.00021917,2]
[342051330,1731395443591,-500.0,0.00021917,2]
[342051331,1731395443600,-500.0,0.00021917,2]
[342051332,1731395443609,-500.0,0.00021917,2]
[342051333,1731395443619,-500.0,0.00021917,2]
[342051334,1731395443628,-500.0,0.00021917,2]
[342051335,1731395443638,-509.11958304,0.00021917,2]
[342051336,1731395443647,-500.0,0.00021917,2]
[342051337,1731395443656,-500.0,0.00021917,2]
[342051338,1731395443666,-500.0,0.00021917,2]
[342051339,1731395443675,-512.01958691,0.00021917,2]
[342051340,1731395443685,-500.0,0.00021917,2]
[342051341,1731395443695,-500.0,0.00021917,2]
[342051342,1731395443703,-500.0,0.00021917,2]
[342051343,1731395443713,-4781.29,0.00021917,2]
[342051344,1731395443722,-500.0,0.00021917,2]
[342051345,1731395443731,-500.0,0.00021917,2]
[342051347,1731395443741,-1089.53,0.00021917,2]
[342051349,1731395443750,-500.0,0.00021917,2]
[342051350,1731395443760,-532.92453238,0.00021917,2]
[342051352,1731395443770,-503.63812652,0.00021917,2]
[342051354,1731395443779,-500.0,0.00021917,2]
[342051356,1731395443788,-500.0,0.00021917,2]
[342051357,1731395443797,-500.0,0.00021917,2]
[342051358,1731395443807,-500.0,0.00021917,2]
[342051360,1731395443816,-633.25863205,0.00021917,2]
[342051362,1731395443826,-500.0,0.00021917,2]
[342051364,1731395443835,-500.0,0.00021917,2]
[342051366,1731395443844,-499.99234833,0.00021917,2]
[342051367,1731395443854,-500.0,0.00021917,2]
[342051369,1731395443863,-500.0,0.00021917,2]
[342051370,1731395443872,-500.0,0.00021917,2]
[342051372,1731395443882,-500.0,0.00021917,2]
[342051373,1731395443891,-150.03,0.00021917,2]
[342051374,1731395443899,-607.85817798,0.00021917,2]
[342051375,1731395443908,-299.85,0.00021917,2]
[342051377,1731395443919,-211.35282607,0.00021917,2]
[342051378,1731395443931,-737.22,0.00021917,2]
[342051379,1731395443940,-500.0,0.00021917,2]
[342051380,1731395443950,-151.0,0.00021917,2]
[342051381,1731395444094,-500.0,0.00021917,2]
[342051382,1731395444104,-151.0,0.00021917,2]
[342051383,1731395444113,-8365.05,0.00021917,2]
[342051384,1731395444122,-509.02768448,0.00021917,2]
[342051385,1731395444132,-151.0,0.00021917,2]
[342051386,1731395444141,-403.94898053,0.00021917,2]
[342051387,1731395444150,-1231.58,0.00021917,2]
[342051388,1731395444159,-151.0,0.00021917,2]
[342051389,1731395444168,-301.999999,0.00021917,2]
[342051390,1731395444181,-500.0,0.00021917,2]
[342051391,1731395444190,-500.0,0.00021917,2]
[342051392,1731395444199,-578.71,0.00021917,2]
[342051393,1731395444208,-540.34143649,0.00021917,2]
[342051394,1731395444218,-150.03,0.00021917,2]
[342051395,1731395444227,-500.0,0.00021917,2]
[342051396,1731395444237,-500.0,0.00021917,2]
[342051398,1731395444246,-500.0,0.00021917,2]
[342051400,1731395444255,-500.0,0.00021917,2]
[342051401,1731395444265,-500.0,0.00021917,2]
[342051402,1731395444275,-521.74223218,0.00021917,2]
[342051403,1731395444283,-500.88286344,0.00021917,2]
[342051404,1731395444293,-500.0,0.00021917,2]
[342051405,1731395444303,-500.0,0.00021917,2]
[342051408,1731395444313,-500.0,0.00021917,2]
[342051409,1731395444323,-500.0,0.00021917,2]
[342051410,1731395444333,-500.0,0.00021917,2]
[342051411,1731395444342,-500.0,0.00021917,2]
[342051412,1731395444352,-500.0,0.00021917,2]
[342051413,1731395444361,-520.63126266,0.00021917,2]
[342051414,1731395444371,-500.0,0.00021917,2]
[342051415,1731395444382,-531.01872596,0.00021917,2]
[342051416,1731395444391,-500.0,0.00021917,2]
[342051417,1731395444401,-690.09,0.00021917,2]
[342051418,1731395444410,-506.94035441,0.00021917,2]
[342051419,1731395444419,-503.12537179,0.00021917,2]
[342051420,1731395444430,-500.0,0.00021917,2]
[342051421,1731395444439,-500.0,0.00021917,2]
[342051422,1731395444449,-3140.86,0.00021917,2]
[342051423,1731395444462,-500.0,0.00021917,2]
[342051424,1731395444471,-507.92733499,0.00021917,2]
[342051425,1731395444480,-534.51506085,0.00021917,2]
[342051426,1731395444489,-459.24372574,0.00021917,2]
[342051427,1731395444499,-500.0,0.00021917,2]
[342051428,1731395444509,-500.0,0.00021917,2]
[342051429,1731395444519,-500.0,0.00021917,2]
[342051430,1731395444531,-500.0,0.00021917,2]
[342051431,1731395444544,-500.0,0.00021917,2]
[342051432,1731395444554,-500.0,0.00021917,2]
[342051433,1731395444563,-500.0,0.00021917,2]
[342051434,1731395444572,-500.0,0.00021917,2]
[342051435,1731395444582,-500.0,0.00021917,2]
[342051436,1731395444592,-1329.26,0.00021917,2]
[342051437,1731395444601,-500.0,0.00021917,2]
[342051438,1731395444611,-508.06153653,0.00021917,2]
[342051439,1731395444621,-598.00750615,0.00021917,2]
[342051440,1731395444631,-1361.49,0.00021917,2]
[342051441,1731395444640,-500.0,0.00021917,2]
[342051442,1731395444650,-500.0,0.00021917,2]
[342051443,1731395444659,-512.07208766,0.00021917,2]
[342051444,1731395444669,-512.37100761,0.00021917,2]
[342051445,1731395444681,-500.0,0.00021917,2]
[342051446,1731395444691,-500.0,0.00021917,2]
[342051447,1731395444701,-500.0,0.00021917,2]
[342051448,1731395444710,-500.0,0.00021917,2]
[342051449,1731395444720,-754.43,0.00021917,2]
[342051450,1731395444728,-1514.78,0.00021917,2]
[342051451,1731395444737,-500.0,0.00021917,2]
[342051452,1731395444747,-500.0,0.00021917,2]
[342051453,1731395444756,-500.0,0.00021917,2]
[342051454,1731395444766,-500.0,0.00021917,2]
[342051455,1731395444779,-500.0,0.00021917,2]
[342051456,1731395444789,-248.095112,0.00021917,2]
[342051457,1731395444799,-248.095112,0.00021917,2]
[342051458,1731395444809,-248.095112,0.00021917,2]
[342051459,1731395444819,-248.095112,0.00021917,2]
[342051460,1731395444829,-248.095112,0.00021917,2]
[342051461,1731395444839,-500.0,0.00021917,2]
[342051462,1731395444849,-248.095112,0.00021917,2]
[342051463,1731395444859,-248.095112,0.00021917,2]
[342051464,1731395444869,-500.0,0.00021917,2]
[342051465,1731395444879,-500.0,0.00021917,2]
[342051466,1731395444890,-248.095112,0.00021917,2]
[342051467,1731395444899,-633.9,0.00021917,2]
[342051468,1731395444909,-500.0,0.00021917,2]
[342051469,1731395444920,-248.095112,0.00021917,2]
[342051470,1731395444935,-248.095112,0.00021917,2]
[342051471,1731395444945,-248.095112,0.00021917,2]
[342051472,1731395444955,-500.0,0.00021917,2]
[342051473,1731395444965,-248.095112,0.00021917,2]
[342051474,1731395444975,-248.095112,0.00021917,2]
[342051475,1731395444985,-500.0,0.00021917,2]
[342051476,1731395444994,-248.095112,0.00021917,2]
[342051477,1731395445004,-500.0,0.00021917,2]
[342051478,1731395445014,-815.11,0.00021917,2]
[342051479,1731395445024,-500.0,0.00021917,2]
[342051480,1731395445034,-500.0,0.00021917,2]
[342051481,1731395445043,-500.0,0.00021917,2]
[342051482,1731395445052,-500.0,0.00021917,2]
[342051483,1731395445062,-500.0,0.00021917,2]
[342051484,1731395445072,-611.92,0.00021917,2]
[342051485,1731395445081,-500.0,0.00021917,2]
[342051486,1731395445091,-500.0,0.00021917,2]
[342051487,1731395445099,-500.0,0.00021917,2]
[342051488,1731395445109,-500.0,0.00021917,2]
[342051489,1731395445118,-12440.19,0.00021917,2]
[342051490,1731395445128,-500.0,0.00021917,2]
[342051491,1731395445137,-500.0,0.00021917,2]
[342051492,1731395445147,-515.26,0.00021917,2]
[342051493,1731395445156,-500.0,0.00021917,2]
[342051494,1731395445165,-782.05,0.00021917,2]
[342051495,1731395445174,-500.0,0.00021917,2]
[342051496,1731395445186,-958.04,0.00021917,2]
[342051497,1731395445195,-500.0,0.00021917,2]
[342051498,1731395445204,-500.0,0.00021917,2]
[342051499,1731395445214,-155.43782732,0.00021917,2]
[342051500,1731395445223,-500.0,0.00021917,2]
[342051501,1731395445233,-500.0,0.00021917,2]
[342051502,1731395445245,-500.0,0.00021917,2]
[342051503,1731395445254,-500.0,0.00021917,2]
[342051504,1731395445263,-500.0,0.00021917,2]
[342051505,1731395445273,-500.0,0.00021917,2]
[342051506,1731395445282,-500.0,0.00021917,2]
[342051507,1731395445291,-500.0,0.00021917,2]
[342051508,1731395445301,-517.22,0.00021917,2]
[342051509,1731395445310,-500.0,0.00021917,2]
[342051510,1731395445318,-1035.61,0.00021917,2]
[342051511,1731395445329,-974.3,0.00021917,2]
[342051512,1731395445338,-500.0,0.00021917,2]
[342051513,1731395445347,-500.0,0.00021917,2]
[342051514,1731395445356,-500.0,0.00021917,2]
[342051515,1731395445366,-511.6832253,0.00021917,2]
[342051516,1731395445375,-500.0,0.00021917,2]
[342051517,1731395445392,-500.0,0.00021917,2]
[342051518,1731395445401,-3387.7,0.00021917,2]
[342051519,1731395445409,-500.0,0.00021917,2]
[342051520,1731395445419,-500.0,0.00021917,2]
[342051521,1731395445429,-1217.45,0.00021917,2]
[342051522,1731395445439,-500.0,0.00021917,2]
[342051523,1731395445449,-500.0,0.00021917,2]
[342051524,1731395445461,-575.64,0.00021917,2]
[342051525,1731395445470,-500.0,0.00021917,2]
[342051526,1731395445480,-166.666666,0.00021918,2]
[342051527,1731395445490,-3000.0,0.0002192,2]
[342051528,1731395445499,-3000.0,0.0002193,2]
[342051529,1731395445508,-173.847,0.00021932,2]
[342051530,1731395445523,-270.667,0.00021932,2]
[342051531,1731395445535,-204.258,0.00021932,2]
[342051532,1731395445546,-150.0,0.00021932,2]
[342051533,1731395445555,-250.0,0.00021932,2]
[342051534,1731395445565,-3000.0,0.0002194,2]
[342051535,1731395445574,-4458.38245,0.0002195,2]
[342051536,1731395445584,-500.0,0.00021973,2]
[342051537,1731395445593,-500.0,0.00021973,2]
[342051538,1731395445603,-500.0,0.00021973,2]
[342051539,1731395445612,-500.0,0.00021973,2]
[342051540,1731395445622,-160.58836082,0.00021973,2]
[342051541,1731395445631,-500.0,0.00021973,2]
[342051542,1731395445641,-501.02361166,0.00021973,2]
[342051543,1731395445650,-502.64882529,0.00021973,2]
[342051546,1731395445659,-199.62686539,0.00021973,2]
[342051547,1731395445669,-159.0,0.00022,2]
[342051548,1731395445679,-410.0,0.00022,2]
[342051550,1731395445688,-167.0,0.00022,2]
[342051551,1731395445697,-500.0,0.00022173,2]
[342051552,1731395445706,-500.0,0.00022173,2]
[342051554,1731395445716,-500.0,0.00022173,2]
[342051555,1731395445725,-500.0,0.00022173,2]
[342051556,1731395445734,-500.0,0.00022173,2]
[342051558,1731395445744,-500.0,0.00022173,2]
[342051560,1731395445754,-500.0,0.00022173,2]
[342051562,1731395445764,-500.0,0.00022173,2]
[342051564,1731395445774,-564.50305121,0.00022173,2]
[342051566,1731395445783,-500.0,0.00022173,2]
[342051568,1731395445792,-150.03,0.00022191,2]
[342051570,1731395445802,-500.0,0.00022191,2]
[342051572,1731395445812,-500.0,0.00022191,2]
[342051574,1731395445822,-150.03,0.00022191,2]
[342051576,1731395445832,-500.0,0.00022191,2]
[342051577,1731395445841,-501.43622124,0.00022191,2]
[342051578,1731395445851,-500.0,0.00022191,2]
[342051579,1731395445860,-500.0,0.00022191,2]
[342051580,1731395445869,-500.0,0.00022191,2]
[342051581,1731395445879,-500.0,0.00022191,2]
[342051582,1731395445891,-500.0,0.00022191,2]
[342051583,1731395445901,-500.0,0.00022191,2]
[342051584,1731395445911,-500.0,0.00022191,2]
[342051585,1731395445920,-400.34835242,0.00022191,2]
[342051586,1731395445932,-184.37853292,0.00022191,2]
[342051587,1731395445941,-604.69736425,0.00022191,2]
[342051588,1731395445951,-500.0,0.00022191,2]
[342051589,1731395445960,-500.0,0.00022191,2]
[342051590,1731395445969,-500.0,0.00022191,2]
[342051591,1731395445978,-500.0,0.00022191,2]
[342051592,1731395445987,-500.0,0.00022191,2]
[342051593,1731395445996,-500.0,0.00022191,2]
[342051594,1731395446006,-500.0,0.00022191,2]
[342051595,1731395446015,-588.51275337,0.00022191,2]
[342051596,1731395446025,-544.45,0.00022191,2]
[342051597,1731395446035,-151.0,0.00022191,7]
[342051598,1731395446045,-151.0,0.00022191,7]
[342051599,1731395446054,-165.045679,0.00022191,7]
[342051600,1731395446064,-642.83152483,0.00022191,2]
[342051601,1731395446073,-151.0,0.00022191,7]
[342051602,1731395446082,-500.0,0.00022191,2]
[342051603,1731395446092,-500.0,0.00022191,2]
[342051604,1731395446101,-500.0,0.00022191,2]
[342051605,1731395446111,-500.0,0.00022191,2]
[342051606,1731395446120,-500.0,0.00022191,2]
[342051607,1731395446130,-500.0,0.00022191,2]
[342051608,1731395446140,-515.04,0.00022191,2]
[342051609,1731395446150,-500.0,0.00022191,2]
[342051610,1731395446159,-500.0,0.00022191,2]
[342051611,1731395446169,-500.0,0.00022191,2]
[342051613,1731395446182,-500.0,0.00022191,2]
[342051614,1731395446191,-503.98862093,0.00022191,2]
[342051616,1731395446201,-500.0,0.00022191,2]
[342051618,1731395446211,-554.84,0.00022191,2]
[342051619,1731395446220,-500.0,0.00022191,2]
[342051620,1731395446230,-500.0,0.00022191,2]
[342051622,1731395446241,-500.0,0.00022191,2]
[342051624,1731395446250,-500.0,0.00022191,2]
[342051626,1731395446260,-500.0,0.00022191,2]
[342051628,1731395446270,-500.0,0.00022191,2]
[342051629,1731395446279,-500.0,0.00022191,2]
[342051630,1731395446289,-291.6045049,0.00022191,2]
[342051631,1731395446298,-500.0,0.00022191,2]
[342051633,1731395446308,-200.0,0.00022191,2]
[342051634,1731395446318,-500.0,0.00022191,2]
[342051635,1731395446327,-500.0,0.00022191,2]
[342051637,1731395446337,-500.12319734,0.00022191,2]
[342051638,1731395446347,-500.0,0.00022191,2]
[342051639,1731395446357,-500.0,0.00022191,2]
[342051641,1731395446366,-1157.98,0.00022191,2]
[342051643,1731395446376,-500.0,0.00022191,2]
[342051644,1731395446386,-500.0,0.00022191,2]
[342051645,1731395446396,-500.0,0.00022191,2]
[342051646,1731395446406,-861.1,0.00022191,2]
[342051647,1731395446416,-161.76408677,0.00022191,2]
[342051648,1731395446425,-528.28,0.00022191,2]
[342051649,1731395446438,-500.0,0.00022191,2]
[342051650,1731395446447,-468.4367218,0.00022191,2]
[342051651,1731395446460,-500.0,0.00022191,2]
[342051652,1731395446470,-500.0,0.00022191,2]
[342051653,1731395446479,-500.0,0.00022191,2]
[342051654,1731395446489,-500.0,0.00022191,2]
[342051655,1731395446500,-500.0,0.00022191,2]
[342051656,1731395446511,-500.0,0.00022191,2]
[342051657,1731395446521,-500.0,0.00022191,2]
[342051658,1731395446532,-500.0,0.00022191,2]
[342051659,1731395446542,-500.0,0.00022191,2]
[342051660,1731395446552,-534.47533925,0.00022191,2]
[342051661,1731395446563,-500.0,0.00022191,2]
[342051662,1731395446573,-500.0,0.00022191,2]
[342051663,1731395446583,-500.0,0.00022191,2]
[342051664,1731395446594,-500.0,0.00022191,2]
[342051665,1731395446604,-500.0,0.00022191,2]
[342051666,1731395446614,-500.0,0.00022191,2]
[342051667,1731395446624,-500.0,0.00022191,2]
[342051668,1731395446634,-500.0,0.00022191,2]
[342051669,1731395446643,-500.0,0.00022191,2]
[342051670,1731395446653,-500.0,0.00022191,2]
[342051671,1731395446663,-500.0,0.00022191,2]
[342051672,1731395446674,-506.40463092,0.00022191,2]
[342051673,1731395446685,-500.0,0.00022191,2]
[342051674,1731395446695,-212.34019699,0.00022191,2]
[342051675,1731395446705,-500.0,0.00022191,2]
[342051676,1731395446714,-500.0,0.00022191,2]
[342051677,1731395446724,-500.0,0.00022191,2]
[342051678,1731395446733,-500.0,0.00022191,2]
[342051679,1731395446742,-500.0,0.00022191,2]
[342051680,1731395446752,-500.0,0.00022191,2]
[342051681,1731395446763,-500.0,0.00022191,2]
[342051682,1731395446773,-500.0,0.00022191,2]
[342051683,1731395446783,-500.0,0.00022191,2]
[342051684,1731395446794,-500.0,0.00022191,2]
[342051685,1731395446804,-500.0,0.00022191,2]
[342051686,1731395446813,-500.0,0.00022191,2]
[342051687,1731395446823,-500.0,0.00022191,2]
[342051688,1731395446833,-500.0,0.00022191,2]
[342051689,1731395446843,-500.0,0.00022191,2]
[342051690,1731395446853,-500.0,0.00022191,2]
[342051691,1731395446862,-529.4,0.00022191,2]
[342051692,1731395446872,-500.0,0.00022191,2]
[342051693,1731395446882,-500.0,0.00022191,2]
[342051694,1731395446891,-500.0,0.00022191,2]
[342051695,1731395446901,-687.54,0.00022191,2]
[342051696,1731395446911,-517.22877872,0.00022191,2]
[342051697,1731395446921,-500.0,0.00022191,2]
[342051698,1731395446931,-500.0,0.00022191,2]
[342051699,1731395446941,-500.0,0.00022191,2]
[342051700,1731395446950,-503.5353093,0.00022191,2]
[342051701,1731395446960,-500.0,0.00022191,2]
[342051702,1731395446970,-500.0,0.00022191,2]
[342051703,1731395446979,-687.26,0.00022191,2]
[342051704,1731395446989,-500.0,0.00022191,2]
[342051705,1731395447000,-2336.0,0.00022191,2]
[342051706,1731395447010,-519.24064583,0.00022191,2]
[342051707,1731395447020,-500.0,0.00022191,2]
[342051708,1731395447030,-500.0,0.00022191,2]
[342051709,1731395447041,-500.0,0.00022191,2]
[342051710,1731395447050,-500.0,0.00022191,2]
[342051711,1731395447060,-500.0,0.00022191,2]
[342051712,1731395447069,-500.0,0.00022191,2]
[342051713,1731395447079,-500.0,0.00022191,2]
[342051714,1731395447089,-632.14001942,0.00022191,2]
[342051715,1731395447099,-2310.28,0.00022191,2]
[342051716,1731395447109,-500.0,0.00022191,2]
[342051717,1731395447119,-500.0,0.00022191,2]
[342051718,1731395447129,-151.0,0.00022191,7]
[342051719,1731395447139,-151.0,0.00022191,7]
[342051720,1731395447149,-151.0,0.00022191,7]
[342051721,1731395447159,-500.0,0.00022191,2]
[342051722,1731395447169,-500.0,0.00022191,2]
[342051723,1731395447180,-443.93022389,0.00022191,2]
[342051724,1731395447190,-500.0,0.00022191,2]
[342051725,1731395447200,-500.0,0.00022191,2]
[342051726,1731395447210,-500.0,0.00022191,2]
[342051727,1731395447219,-500.0,0.00022191,2]
[342051728,1731395447229,-500.0,0.00022191,2]
[342051729,1731395447240,-163.12045314,0.00022191,2]
[342051730,1731395447250,-500.0,0.00022191,2]
[342051731,1731395447260,-500.0,0.00022191,2]
[342051732,1731395447270,-500.0,0.00022191,2]
[342051733,1731395447280,-500.0,0.00022191,2]
[342051734,1731395447290,-500.0,0.00022191,2]
[342051735,1731395447300,-500.0,0.00022191,2]
[342051736,1731395447313,-500.0,0.00022191,2]
[342051737,1731395447326,-528.21991989,0.00022191,2]
[342051738,1731395447337,-500.0,0.00022191,2]
[342051739,1731395447346,-500.0,0.00022191,2]
[342051740,1731395447356,-500.0,0.00022191,2]
[342051741,1731395447366,-500.0,0.00022191,2]
[342051742,1731395447500,-500.0,0.00022191,2]
[342051743,1731395447509,-500.0,0.00022191,2]
[342051744,1731395447519,-500.0,0.00022191,2]
[342051745,1731395447528,-500.0,0.00022191,2]
[342051746,1731395447539,-500.0,0.00022191,2]
[342051747,1731395447549,-2204.59,0.00022191,2]
[342051748,1731395447558,-500.0,0.00022191,2]
[342051749,1731395447566,-500.0,0.00022191,2]
[342051750,1731395447575,-500.0,0.00022191,2]
[342051751,1731395447585,-504.22219023,0.00022191,2]
[342051752,1731395447594,-500.0,0.00022191,2]
[342051753,1731395447603,-657.25,0.00022191,2]
[342051754,1731395447612,-500.0,0.00022191,2]
[342051755,1731395447622,-503.09023533,0.00022191,2]
[342051756,1731395447631,-500.0,0.00022191,2]
[342051757,1731395447640,-6271.46,0.00022191,2]
[342051758,1731395447649,-883.62,0.00022191,2]
[342051759,1731395447659,-573.94,0.00022191,2]
[342051760,1731395447668,-925.17,0.00022191,2]
[342051761,1731395447677,-500.0,0.00022191,2]
[342051762,1731395447689,-500.0,0.00022191,2]
[342051763,1731395447698,-500.0,0.00022191,2]
[342051764,1731395447708,-500.0,0.00022191,2]
[342051765,1731395447717,-1011.75,0.00022191,2]
[342051766,1731395447726,-500.58028047,0.00022191,2]
[342051767,1731395447735,-19034.84,0.00022191,2]
[342051768,1731395447744,-1831.69,0.00022191,2]
[342051769,1731395447754,-500.0,0.00022191,2]
[342051770,1731395447763,-623.85,0.00022191,2]
[342051771,1731395447773,-500.0,0.00022191,2]
[342051772,1731395447782,-500.0,0.00022191,2]
[342051773,1731395447791,-564.26,0.00022191,2]
[342051774,1731395447799,-500.0,0.00022191,2]
[342051775,1731395447809,-1321.42,0.00022191,2]
[342051776,1731395447818,-500.0,0.00022191,2]
[342051777,1731395447827,-611.57841997,0.00022191,2]
[342051778,1731395447837,-500.0,0.00022191,2]
[342051779,1731395447846,-500.0,0.00022191,2]
[342051780,1731395447855,-500.0,0.00022191,2]
[342051781,1731395447865,-500.0,0.00022191,2]
[342051782,1731395447874,-500.0,0.00022191,2]
[342051783,1731395447883,-500.0,0.00022191,2]
[342051784,1731395447892,-516.24,0.00022191,2]
[342051785,1731395447902,-500.0,0.00022191,2]
[342051786,1731395447911,-1588.61,0.00022191,2]
[342051787,1731395447920,-500.0,0.00022191,2]
[342051788,1731395447932,-251.29744023,0.00022191,2]
[342051789,1731395447942,-500.0,0.00022191,2]
[342051790,1731395447950,-151.0,0.00022191,7]
[342051791,1731395447959,-156.657916,0.00022191,7]
[342051792,1731395447969,-510.20463938,0.00022191,2]
[342051793,1731395447978,-500.0,0.00022191,2]
[342051794,1731395447988,-6707.74,0.00022191,2]
[342051795,1731395447998,-500.0,0.00022191,2]
[342051796,1731395448007,-517.94918106,0.00022191,2]
[342051797,1731395448017,-500.0,0.00022191,2]
[342051798,1731395448026,-500.0,0.00022191,2]
[342051799,1731395448035,-500.0,0.00022191,2]
[342051800,1731395448045,-500.0,0.00022191,2]
[342051801,1731395448054,-483.19260441,0.00022191,2]
[342051802,1731395448063,-500.0,0.00022191,2]
[342051803,1731395448073,-4781.29,0.00022191,2]
[342051804,1731395448082,-1089.53,0.00022191,2]
[342051805,1731395448092,-325.06644976,0.00022191,2]
[342051806,1731395448101,-500.0,0.00022191,2]
[342051807,1731395448111,-500.0,0.00022191,2]
[342051808,1731395448120,-500.0,0.00022191,2]
[342051809,1731395448130,-500.0,0.00022191,2]
[342051810,1731395448139,-737.22,0.00022191,2]
[342051811,1731395448148,-500.0,0.00022191,2]
[342051812,1731395448157,-8365.05,0.00022191,2]
[342051813,1731395448166,-1231.58,0.00022191,2]
[342051814,1731395448175,-456.33013892,0.00022191,2]
[342051815,1731395448187,-578.71,0.00022191,2]
[342051816,1731395448196,-182.03736068,0.00022191,2]
[342051817,1731395448205,-500.0,0.00022191,2]
[342051818,1731395448215,-625.42045839,0.00022191,2]
[342051819,1731395448224,-500.0,0.00022191,2]
[342051820,1731395448234,-596.51173812,0.00022191,2]
[342051821,1731395448243,-500.0,0.00022191,2]
[342051822,1731395448253,-500.0,0.00022191,2]
[342051823,1731395448262,-500.0,0.00022191,2]